[Event "Titled Tuesday Blitz June 07 Early 2022"]
[White "Cardoso Cardoso, Jose Gabriel"]
[Black "Janaszak, Dawid"]
[WhiteFideId "4430492"]
[BlackFideId "1119206"]
[WhiteElo "2485"]
[BlackElo "2199"]
[Result "1/2-1/2"]
[Round "09"]
[TimeControl "180+1"]
[Date "2022.06.07"]
[WhiteClock "0:00:05"]
[BlackClock "0:00:05"]

1. c4 {[%clk 0:03:00]}  Nf6 {[%clk 0:02:59]} 2. g3 {[%clk 0:02:58]}  g6 {[%clk 0:02:59]} 3. b3 {[%clk 0:02:57]}  Bg7 {[%clk 0:02:59]} 4. Bb2 {[%clk 0:02:58]}  d6 {[%clk 0:02:55]} 5. d4 {[%clk 0:02:56]}  c5 {[%clk 0:02:50]} 6. Nf3 {[%clk 0:02:49]}  O-O {[%clk 0:02:43]} 7. Bg2 {[%clk 0:02:42]}  Qa5+ {[%clk 0:02:38]} 8. Bc3 {[%clk 0:02:31]}  Qb6 {[%clk 0:02:38]} 9. d5 {[%clk 0:02:29]}  e5 {[%clk 0:02:31]} 10. dxe6 {[%clk 0:02:24]}  Bxe6 {[%clk 0:02:30]} 11. O-O {[%clk 0:02:20]}  Rd8 {[%clk 0:02:29]} 12. Ng5 {[%clk 0:02:17]}  Nc6 {[%clk 0:02:17]} 13. Nxe6 {[%clk 0:02:15]}  fxe6 {[%clk 0:02:18]} 14. e3 {[%clk 0:01:58]}  Qc7 {[%clk 0:02:16]} 15. Qe2 {[%clk 0:01:28]}  d5 {[%clk 0:02:14]} 16. Rd1 {[%clk 0:01:26]}  Ne4 {[%clk 0:02:02]} 17. Bxe4 {[%clk 0:01:18]}  dxe4 {[%clk 0:02:01]} 18. Bxg7 {[%clk 0:01:14]}  Qxg7 {[%clk 0:02:02]} 19. Nd2 {[%clk 0:01:13]}  Qb2 {[%clk 0:01:56]} 20. Kf1 {[%clk 0:00:54]}  Qc2 {[%clk 0:01:42]} 21. Rac1 {[%clk 0:00:35]}  Qd3 {[%clk 0:01:41]} 22. Qxd3 {[%clk 0:00:26]}  exd3 {[%clk 0:01:42]} 23. Ne4 {[%clk 0:00:26]}  b6 {[%clk 0:01:37]} 24. Rc3 {[%clk 0:00:23]}  Ne5 {[%clk 0:01:10]} 25. f4 {[%clk 0:00:22]}  Ng4 {[%clk 0:01:10]} 26. Rdxd3 {[%clk 0:00:23]}  Nxh2+ {[%clk 0:01:08]} 27. Ke2 {[%clk 0:00:23]}  Ng4 {[%clk 0:01:09]} 28. Ng5 {[%clk 0:00:19]}  e5 {[%clk 0:01:07]} 29. Kf3 {[%clk 0:00:18]}  h5 {[%clk 0:01:05]} 30. Rd5 {[%clk 0:00:07]}  exf4 {[%clk 0:00:57]} 31. gxf4 {[%clk 0:00:06]}  Re8 {[%clk 0:00:54]} 32. e4 {[%clk 0:00:05]}  Re7 {[%clk 0:00:54]} 33. e5 {[%clk 0:00:05]}  Rf8 {[%clk 0:00:54]} 34. Kg3 {[%clk 0:00:05]}  Nh6 {[%clk 0:00:53]} 35. Rcd3 {[%clk 0:00:05]}  Nf5+ {[%clk 0:00:53]} 36. Kf3 {[%clk 0:00:05]}  Nd4+ {[%clk 0:00:54]} 37. R3xd4 {[%clk 0:00:05]}  cxd4 {[%clk 0:00:54]} 38. Ke4 {[%clk 0:00:06]}  Ree8 {[%clk 0:00:44]} 39. Rd6 {[%clk 0:00:05]}  d3 {[%clk 0:00:26]} 40. Rxg6+ {[%clk 0:00:05]}  Kh8 {[%clk 0:00:26]} 41. Rh6+ {[%clk 0:00:03]}  Kg7 {[%clk 0:00:26]} 42. Rxh5 {[%clk 0:00:04]}  d2 {[%clk 0:00:25]} 43. Rh1 {[%clk 0:00:05]}  Rh8 {[%clk 0:00:24]} 44. Rd1 {[%clk 0:00:05]}  Rh2 {[%clk 0:00:24]} 45. Nf3 {[%clk 0:00:05]}  Re2+ {[%clk 0:00:24]} 46. Kd3 {[%clk 0:00:05]}  Rf2 {[%clk 0:00:24]} 47. Ke3 {[%clk 0:00:06]}  Rg2 {[%clk 0:00:25]} 48. Rxd2 {[%clk 0:00:06]}  Rxd2 {[%clk 0:00:23]} 49. Nxd2 {[%clk 0:00:07]}  Kf7 {[%clk 0:00:24]} 50. Ke4 {[%clk 0:00:07]}  Rh8 {[%clk 0:00:23]} 51. Nf3 {[%clk 0:00:07]}  Rh1 {[%clk 0:00:23]} 52. Ng5+ {[%clk 0:00:06]}  Ke7 {[%clk 0:00:23]} 53. f5 {[%clk 0:00:07]}  Re1+ {[%clk 0:00:23]} 54. Kd5 {[%clk 0:00:07]}  Rd1+ {[%clk 0:00:23]} 55. Kc6 {[%clk 0:00:08]}  Re1 {[%clk 0:00:21]} 56. f6+ {[%clk 0:00:08]}  Kf8 {[%clk 0:00:20]} 57. Kd6 {[%clk 0:00:09]}  Rd1+ {[%clk 0:00:17]} 58. Ke6 {[%clk 0:00:09]}  Rh1 {[%clk 0:00:16]} 59. Ne4 {[%clk 0:00:09]}  Rh2 {[%clk 0:00:14]} 60. Kd7 {[%clk 0:00:07]}  Re2 {[%clk 0:00:11]} 61. Nd6 {[%clk 0:00:03]}  Rxe5 {[%clk 0:00:12]} 62. Kc7 {[%clk 0:00:02]}  Re2 {[%clk 0:00:11]} 63. Nc8 {[%clk 0:00:01]}  Rxa2 {[%clk 0:00:10]} 64. Kb7 {[%clk 0:00:02]}  Ra3 {[%clk 0:00:10]} 65. Nxa7 {[%clk 0:00:02]}  Rxb3 {[%clk 0:00:10]} 66. Nb5 {[%clk 0:00:02]}  Rb4 {[%clk 0:00:08]} 67. Nd6 {[%clk 0:00:01]}  Rb1 {[%clk 0:00:05]} 68. Kc6 {[%clk 0:00:02]}  Rb2 {[%clk 0:00:05]} 69. f7 {[%clk 0:00:02]}  Rb1 {[%clk 0:00:05]} 70. Kc7 {[%clk 0:00:02]}  Rb2 {[%clk 0:00:05]} 71. Kd7 {[%clk 0:00:03]}  Rb1 {[%clk 0:00:05]} 72. Ke6 {[%clk 0:00:04]}  Re1+ {[%clk 0:00:05]} 73. Kd5 {[%clk 0:00:04]}  Rd1+ {[%clk 0:00:05]} 74. Kc6 {[%clk 0:00:05]}  Rb1 {[%clk 0:00:05]} 75. Kc7 {[%clk 0:00:05]}  Rb2 {[%clk 0:00:05]} 76. Nb5 {[%clk 0:00:05]}  Rb4 {[%clk 0:00:04]} 77. Nd6 {[%clk 0:00:04]}  Rxc4+ {[%clk 0:00:04]} 78. Nxc4 {[%clk 0:00:04]}  Kxf7 {[%clk 0:00:05]} 79. Nxb6 {[%clk 0:00:05]} 1/2-1/2


[Site "https://www.chess.com"]

[Event "Titled Tuesday Blitz June 07 Early 2022"]
[White "Chigaev, Maksim"]
[Black "Khamdamova, Afruza"]
[WhiteFideId "4108116"]
[BlackFideId "14210444"]
[WhiteElo "2457"]
[BlackElo "1660"]
[Result "1-0"]
[Round "09"]
[TimeControl "180+1"]
[Date "2022.06.07"]
[WhiteClock "0:01:24"]
[BlackClock "0:00:27"]

1. d4 {[%clk 0:03:00]}  Nf6 {[%clk 0:02:59]} 2. Nf3 {[%clk 0:03:00]}  d5 {[%clk 0:02:59]} 3. c4 {[%clk 0:02:58]}  e6 {[%clk 0:02:59]} 4. g3 {[%clk 0:02:57]}  dxc4 {[%clk 0:02:58]} 5. Bg2 {[%clk 0:02:55]}  c5 {[%clk 0:02:58]} 6. O-O {[%clk 0:02:53]}  Nc6 {[%clk 0:02:58]} 7. dxc5 {[%clk 0:02:49]}  Qxd1 {[%clk 0:02:56]} 8. Rxd1 {[%clk 0:02:50]}  Bxc5 {[%clk 0:02:56]} 9. Nfd2 {[%clk 0:02:50]}  Ne5 {[%clk 0:02:48]} 10. Na3 {[%clk 0:02:44]}  c3 {[%clk 0:02:36]} 11. bxc3 {[%clk 0:02:41]}  O-O {[%clk 0:02:29]} 12. Nb3 {[%clk 0:02:35]}  Be7 {[%clk 0:02:21]} 13. c4 {[%clk 0:02:26]}  Ng6 {[%clk 0:02:02]} 14. Nb5 {[%clk 0:02:20]}  e5 {[%clk 0:01:59]} 15. Be3 {[%clk 0:02:16]}  Be6 {[%clk 0:01:23]} 16. Nc7 {[%clk 0:01:47]}  Rac8 {[%clk 0:01:23]} 17. Nxe6 {[%clk 0:01:48]}  fxe6 {[%clk 0:01:23]} 18. Bxb7 {[%clk 0:01:44]}  Rxc4 {[%clk 0:01:23]} 19. Rac1 {[%clk 0:01:44]}  Ra4 {[%clk 0:01:21]} 20. Rc2 {[%clk 0:01:39]}  Ng4 {[%clk 0:01:13]} 21. Bc5 {[%clk 0:01:37]}  Bxc5 {[%clk 0:00:44]} 22. Nxc5 {[%clk 0:01:38]}  Rb4 {[%clk 0:00:41]} 23. Bf3 {[%clk 0:01:27]}  Re8 {[%clk 0:00:27]} 24. a3 {[%clk 0:01:24]} 1-0


[Site "https://www.chess.com"]

[Event "Titled Tuesday Blitz June 07 Early 2022"]
[White "Costachi, Mihnea"]
[Black "Djokic, Mihailo"]
[WhiteFideId "1217518"]
[BlackFideId "976440"]
[WhiteElo "2476"]
[BlackElo "2255"]
[Result "1-0"]
[Round "09"]
[TimeControl "180+1"]
[Date "2022.06.07"]
[WhiteClock "0:01:06"]
[BlackClock "0:00:29"]

1. d4 {[%clk 0:03:00]}  Nf6 {[%clk 0:03:00]} 2. Bg5 {[%clk 0:03:00]}  Ne4 {[%clk 0:02:57]} 3. Bf4 {[%clk 0:02:59]}  d5 {[%clk 0:02:57]} 4. e3 {[%clk 0:02:58]}  c5 {[%clk 0:02:54]} 5. Nd2 {[%clk 0:02:58]}  Nxd2 {[%clk 0:02:51]} 6. Qxd2 {[%clk 0:02:58]}  e6 {[%clk 0:02:51]} 7. c3 {[%clk 0:02:54]}  Nc6 {[%clk 0:02:47]} 8. Nf3 {[%clk 0:02:51]}  Bd6 {[%clk 0:02:45]} 9. Bg3 {[%clk 0:02:50]}  Qc7 {[%clk 0:02:42]} 10. dxc5 {[%clk 0:02:46]}  Bxg3 {[%clk 0:02:39]} 11. hxg3 {[%clk 0:02:47]}  Bd7 {[%clk 0:02:35]} 12. b4 {[%clk 0:02:37]}  a5 {[%clk 0:02:34]} 13. Be2 {[%clk 0:02:34]}  axb4 {[%clk 0:02:31]} 14. cxb4 {[%clk 0:02:35]}  Ra3 {[%clk 0:02:32]} 15. Qb2 {[%clk 0:02:25]}  Ra4 {[%clk 0:02:27]} 16. Qxg7 {[%clk 0:02:23]}  Rf8 {[%clk 0:02:27]} 17. Rxh7 {[%clk 0:02:06]}  Nxb4 {[%clk 0:02:24]} 18. Kf1 {[%clk 0:01:48]}  Qxc5 {[%clk 0:02:16]} 19. Ne5 {[%clk 0:01:44]}  Bb5 {[%clk 0:02:12]} 20. Bxb5+ {[%clk 0:01:39]}  Qxb5+ {[%clk 0:02:12]} 21. Kg1 {[%clk 0:01:40]}  Qc5 {[%clk 0:01:27]} 22. Ng6 {[%clk 0:01:29]}  Nc2 {[%clk 0:00:50]} 23. Nxf8 {[%clk 0:01:23]}  Qe7 {[%clk 0:00:30]} 24. Ng6 {[%clk 0:01:10]}  Rg4 {[%clk 0:00:30]} 25. Qh8+ {[%clk 0:01:07]}  Qf8 {[%clk 0:00:29]} 26. Qxf8+ {[%clk 0:01:06]} 1-0


[Site "https://www.chess.com"]

[Event "Titled Tuesday Blitz June 07 Early 2022"]
[White "Jeet, Jain"]
[Black "Harvey, Marcus R"]
[WhiteFideId "5073022"]
[BlackFideId "400092"]
[WhiteElo "2055"]
[BlackElo "2485"]
[Result "1-0"]
[Round "09"]
[TimeControl "180+1"]
[Date "2022.06.07"]
[WhiteClock "0:00:24"]
[BlackClock "0:00:18"]

1. Nf3 {[%clk 0:02:58]}  d5 {[%clk 0:02:59]} 2. e3 {[%clk 0:02:57]}  Nf6 {[%clk 0:03:00]} 3. b3 {[%clk 0:02:57]}  e6 {[%clk 0:02:59]} 4. Bb2 {[%clk 0:02:58]}  Bd6 {[%clk 0:02:59]} 5. d4 {[%clk 0:02:58]}  c5 {[%clk 0:02:57]} 6. Bd3 {[%clk 0:02:58]}  Nc6 {[%clk 0:02:57]} 7. a3 {[%clk 0:02:58]}  cxd4 {[%clk 0:02:57]} 8. exd4 {[%clk 0:02:58]}  Qc7 {[%clk 0:02:57]} 9. O-O {[%clk 0:02:57]}  O-O {[%clk 0:02:58]} 10. Re1 {[%clk 0:02:54]}  b6 {[%clk 0:02:49]} 11. Nbd2 {[%clk 0:02:53]}  Bb7 {[%clk 0:02:50]} 12. Ne5 {[%clk 0:02:53]}  Rac8 {[%clk 0:02:46]} 13. f4 {[%clk 0:02:50]}  Ne7 {[%clk 0:02:46]} 14. Rc1 {[%clk 0:02:49]}  Qb8 {[%clk 0:02:40]} 15. Qe2 {[%clk 0:02:41]}  Qa8 {[%clk 0:02:15]} 16. g4 {[%clk 0:02:38]}  Rc7 {[%clk 0:02:05]} 17. g5 {[%clk 0:02:35]}  Ne4 {[%clk 0:02:06]} 18. Nxe4 {[%clk 0:02:25]}  dxe4 {[%clk 0:02:06]} 19. Bxe4 {[%clk 0:02:25]}  Bxe4 {[%clk 0:02:00]} 20. Qxe4 {[%clk 0:02:26]}  Qxe4 {[%clk 0:01:58]} 21. Rxe4 {[%clk 0:02:27]}  Rd8 {[%clk 0:01:51]} 22. c4 {[%clk 0:02:11]}  Nf5 {[%clk 0:01:50]} 23. Nf3 {[%clk 0:02:06]}  Rb8 {[%clk 0:01:39]} 24. Kf2 {[%clk 0:01:54]}  Ne7 {[%clk 0:01:36]} 25. b4 {[%clk 0:01:48]}  Nf5 {[%clk 0:01:29]} 26. Ba1 {[%clk 0:01:35]}  Be7 {[%clk 0:01:29]} 27. c5 {[%clk 0:01:31]}  b5 {[%clk 0:01:18]} 28. d5 {[%clk 0:01:25]}  exd5 {[%clk 0:01:18]} 29. Re5 {[%clk 0:01:23]}  g6 {[%clk 0:01:09]} 30. Rxd5 {[%clk 0:01:23]}  Re8 {[%clk 0:01:06]} 31. Re1 {[%clk 0:01:18]}  Ra8 {[%clk 0:01:01]} 32. Be5 {[%clk 0:01:13]}  Rc6 {[%clk 0:01:01]} 33. Nd4 {[%clk 0:01:07]}  Nxd4 {[%clk 0:01:01]} 34. Bxd4 {[%clk 0:01:07]}  Bf8 {[%clk 0:00:58]} 35. Bf6 {[%clk 0:00:59]}  a5 {[%clk 0:00:57]} 36. Rde5 {[%clk 0:00:50]}  axb4 {[%clk 0:00:57]} 37. axb4 {[%clk 0:00:38]}  Rcc8 {[%clk 0:00:52]} 38. h4 {[%clk 0:00:36]}  Ra4 {[%clk 0:00:52]} 39. R5e4 {[%clk 0:00:36]}  h5 {[%clk 0:00:46]} 40. R1e2 {[%clk 0:00:35]}  Raa8 {[%clk 0:00:44]} 41. Rd2 {[%clk 0:00:35]}  Ra4 {[%clk 0:00:42]} 42. Kf3 {[%clk 0:00:33]}  Ra3+ {[%clk 0:00:41]} 43. Kg2 {[%clk 0:00:31]}  Ra4 {[%clk 0:00:41]} 44. Red4 {[%clk 0:00:31]}  Rc7 {[%clk 0:00:18]} 45. Rd8 {[%clk 0:00:24]}  Rxb4 {[%clk 0:00:18]} 46. Rxf8+ {[%clk 0:00:24]} 1-0


[Site "https://www.chess.com"]

[Event "Titled Tuesday Blitz June 07 Early 2022"]
[White "Kozak, Adam"]
[Black "Rosen, Eric"]
[WhiteFideId "753246"]
[BlackFideId "2032562"]
[WhiteElo "2459"]
[BlackElo "2362"]
[Result "1-0"]
[Round "09"]
[TimeControl "180+1"]
[Date "2022.06.07"]
[WhiteClock "0:01:14"]
[BlackClock "0:00:01"]

1. Nf3 {[%clk 0:02:57]}  d5 {[%clk 0:03:00]} 2. g3 {[%clk 0:02:57]}  Nf6 {[%clk 0:03:00]} 3. Bg2 {[%clk 0:02:57]}  e6 {[%clk 0:03:01]} 4. O-O {[%clk 0:02:57]}  b5 {[%clk 0:03:01]} 5. b3 {[%clk 0:02:54]}  Be7 {[%clk 0:03:00]} 6. Bb2 {[%clk 0:02:54]}  c5 {[%clk 0:02:58]} 7. c4 {[%clk 0:02:52]}  bxc4 {[%clk 0:02:40]} 8. bxc4 {[%clk 0:02:52]}  O-O {[%clk 0:02:39]} 9. cxd5 {[%clk 0:02:51]}  exd5 {[%clk 0:02:39]} 10. d3 {[%clk 0:02:50]}  Bb7 {[%clk 0:02:35]} 11. Nbd2 {[%clk 0:02:49]}  Nbd7 {[%clk 0:02:31]} 12. Rb1 {[%clk 0:02:49]}  Qc7 {[%clk 0:02:09]} 13. Qc2 {[%clk 0:02:46]}  Rac8 {[%clk 0:02:07]} 14. Rfc1 {[%clk 0:02:44]}  Rfd8 {[%clk 0:02:05]} 15. Nd4 {[%clk 0:02:43]}  Nb6 {[%clk 0:01:49]} 16. Nf5 {[%clk 0:02:40]}  d4 {[%clk 0:01:43]} 17. Nxd4 {[%clk 0:02:37]}  Bxg2 {[%clk 0:01:34]} 18. Kxg2 {[%clk 0:02:37]}  Nbd5 {[%clk 0:00:37]} 19. N4f3 {[%clk 0:02:33]}  h6 {[%clk 0:00:29]} 20. Nc4 {[%clk 0:02:28]}  Nb4 {[%clk 0:00:29]} 21. Qa4 {[%clk 0:02:27]}  Nfd5 {[%clk 0:00:23]} 22. a3 {[%clk 0:02:24]}  Nb6 {[%clk 0:00:24]} 23. Nxb6 {[%clk 0:02:20]}  Qxb6 {[%clk 0:00:18]} 24. axb4 {[%clk 0:02:16]}  cxb4 {[%clk 0:00:18]} 25. Rxc8 {[%clk 0:02:14]}  Rxc8 {[%clk 0:00:15]} 26. Bd4 {[%clk 0:02:14]}  Qd8 {[%clk 0:00:05]} 27. Qxa7 {[%clk 0:02:11]}  g5 {[%clk 0:00:05]} 28. h3 {[%clk 0:02:07]}  Ra8 {[%clk 0:00:03]} 29. Qb7 {[%clk 0:02:06]}  h5 {[%clk 0:00:02]} 30. Qe4 {[%clk 0:02:06]}  Rb8 {[%clk 0:00:01]} 31. Qe5 {[%clk 0:02:06]}  f6 {[%clk 0:00:01]} 32. Qe4 {[%clk 0:02:07]}  Qe8 {[%clk 0:00:01]} 33. g4 {[%clk 0:02:02]}  h4 {[%clk 0:00:01]} 34. Nd2 {[%clk 0:02:01]}  Qf7 {[%clk 0:00:01]} 35. Nc4 {[%clk 0:02:01]}  Bf8 {[%clk 0:00:01]} 36. Qf3 {[%clk 0:02:01]}  Bg7 {[%clk 0:00:02]} 37. Nd6 {[%clk 0:01:59]}  Qd7 {[%clk 0:00:01]} 38. Nf5 {[%clk 0:02:00]}  Qb7 {[%clk 0:00:01]} 39. Rb3 {[%clk 0:01:56]}  Bf8 {[%clk 0:00:01]} 40. Qxb7 {[%clk 0:01:54]}  Rxb7 {[%clk 0:00:02]} 41. Bxf6 {[%clk 0:01:55]}  Kf7 {[%clk 0:00:01]} 42. Bxg5 {[%clk 0:01:55]}  Kg6 {[%clk 0:00:02]} 43. Bxh4 {[%clk 0:01:56]}  Ra7 {[%clk 0:00:03]} 44. Rb1 {[%clk 0:01:55]}  Ra3 {[%clk 0:00:03]} 45. Bg3 {[%clk 0:01:55]}  Kf6 {[%clk 0:00:02]} 46. Bd6 {[%clk 0:01:54]}  Bxd6 {[%clk 0:00:02]} 47. Nxd6 {[%clk 0:01:55]}  Ra4 {[%clk 0:00:02]} 48. Nc4 {[%clk 0:01:55]}  Kg5 {[%clk 0:00:03]} 49. Kg3 {[%clk 0:01:55]}  Kg6 {[%clk 0:00:02]} 50. f4 {[%clk 0:01:56]}  Ra2 {[%clk 0:00:02]} 51. Rxb4 {[%clk 0:01:56]}  Rxe2 {[%clk 0:00:02]} 52. Rb6+ {[%clk 0:01:24]}  Kg7 {[%clk 0:00:02]} 53. Rb2 {[%clk 0:01:21]}  Re7 {[%clk 0:00:01]} 54. Kf3 {[%clk 0:01:21]}  Rc7 {[%clk 0:00:01]} 55. Rd2 {[%clk 0:01:21]}  Kh7 {[%clk 0:00:01]} 56. Ne3 {[%clk 0:01:22]}  Re7 {[%clk 0:00:01]} 57. h4 {[%clk 0:01:22]}  Ra7 {[%clk 0:00:01]} 58. h5 {[%clk 0:01:22]}  Kh6 {[%clk 0:00:01]} 59. d4 {[%clk 0:01:22]}  Rd7 {[%clk 0:00:01]} 60. Nf5+ {[%clk 0:01:21]}  Kh7 {[%clk 0:00:01]} 61. d5 {[%clk 0:01:22]}  Kg8 {[%clk 0:00:01]} 62. Rc2 {[%clk 0:01:14]} 1-0


[Site "https://www.chess.com"]

[Event "Titled Tuesday Blitz June 07 Early 2022"]
[White "Le, Tuan Minh"]
[Black "Vokhidov, Shamsiddin"]
[WhiteFideId "12401153"]
[BlackFideId "14204223"]
[WhiteElo "2530"]
[BlackElo "2611"]
[Result "1-0"]
[Round "09"]
[TimeControl "180+1"]
[Date "2022.06.07"]
[WhiteClock "0:00:41"]
[BlackClock "0:00:08"]

1. d4 {[%clk 0:03:00]}  Nf6 {[%clk 0:03:00]} 2. Nf3 {[%clk 0:03:00]}  d5 {[%clk 0:03:01]} 3. Bf4 {[%clk 0:02:57]}  c5 {[%clk 0:03:01]} 4. c3 {[%clk 0:02:49]}  Nc6 {[%clk 0:03:01]} 5. e3 {[%clk 0:02:50]}  Nh5 {[%clk 0:02:57]} 6. Be5 {[%clk 0:02:50]}  f6 {[%clk 0:02:57]} 7. Bg3 {[%clk 0:02:50]}  g6 {[%clk 0:02:57]} 8. Bd3 {[%clk 0:02:49]}  cxd4 {[%clk 0:02:55]} 9. cxd4 {[%clk 0:02:49]}  Bg7 {[%clk 0:02:47]} 10. Nc3 {[%clk 0:02:49]}  O-O {[%clk 0:02:47]} 11. Bc2 {[%clk 0:02:49]}  Be6 {[%clk 0:02:44]} 12. O-O {[%clk 0:02:45]}  Bf7 {[%clk 0:02:44]} 13. Rc1 {[%clk 0:02:45]}  Rc8 {[%clk 0:02:38]} 14. a3 {[%clk 0:02:44]}  Qd7 {[%clk 0:02:38]} 15. Bb3 {[%clk 0:02:43]}  Rfd8 {[%clk 0:02:36]} 16. Ba2 {[%clk 0:02:36]}  Nxg3 {[%clk 0:02:35]} 17. hxg3 {[%clk 0:02:36]}  Na5 {[%clk 0:02:28]} 18. Qe2 {[%clk 0:02:32]}  Nc4 {[%clk 0:02:17]} 19. Rfd1 {[%clk 0:02:31]}  b5 {[%clk 0:02:15]} 20. e4 {[%clk 0:02:25]}  dxe4 {[%clk 0:02:13]} 21. Nxe4 {[%clk 0:02:24]}  Bh6 {[%clk 0:02:01]} 22. Rc2 {[%clk 0:02:16]}  Qf5 {[%clk 0:01:55]} 23. a4 {[%clk 0:02:11]}  a6 {[%clk 0:01:48]} 24. Re1 {[%clk 0:02:09]}  Kg7 {[%clk 0:01:44]} 25. Rc3 {[%clk 0:01:45]}  Rc6 {[%clk 0:01:16]} 26. axb5 {[%clk 0:01:27]}  axb5 {[%clk 0:01:17]} 27. Bb1 {[%clk 0:01:28]}  Qc8 {[%clk 0:01:10]} 28. b4 {[%clk 0:01:14]}  Rd7 {[%clk 0:00:54]} 29. Nc5 {[%clk 0:01:13]}  Ra7 {[%clk 0:00:55]} 30. Be4 {[%clk 0:01:08]}  Rd6 {[%clk 0:00:54]} 31. Rd3 {[%clk 0:01:06]}  Nb6 {[%clk 0:00:51]} 32. Rdd1 {[%clk 0:01:04]}  Bc4 {[%clk 0:00:50]} 33. Bd3 {[%clk 0:01:04]}  Bf7 {[%clk 0:00:36]} 34. Bxb5 {[%clk 0:01:03]}  Nd5 {[%clk 0:00:36]} 35. Ra1 {[%clk 0:00:50]}  Rxa1 {[%clk 0:00:30]} 36. Rxa1 {[%clk 0:00:51]}  Qb8 {[%clk 0:00:24]} 37. Bc4 {[%clk 0:00:49]}  Nc3 {[%clk 0:00:17]} 38. Qxe7 {[%clk 0:00:47]}  Nd5 {[%clk 0:00:15]} 39. Bxd5 {[%clk 0:00:45]}  Rxd5 {[%clk 0:00:16]} 40. Ra7 {[%clk 0:00:45]}  Qg8 {[%clk 0:00:10]} 41. Ne6+ {[%clk 0:00:45]}  Kh8 {[%clk 0:00:10]} 42. Qxf7 {[%clk 0:00:45]}  Qxf7 {[%clk 0:00:10]} 43. Rxf7 {[%clk 0:00:46]}  Rb5 {[%clk 0:00:10]} 44. Rxf6 {[%clk 0:00:40]}  Rxb4 {[%clk 0:00:10]} 45. g4 {[%clk 0:00:40]}  Rb1+ {[%clk 0:00:11]} 46. Kh2 {[%clk 0:00:41]}  Rd1 {[%clk 0:00:11]} 47. g5 {[%clk 0:00:41]}  Bg7 {[%clk 0:00:08]} 48. Rf7 {[%clk 0:00:41]} 1-0


[Site "https://www.chess.com"]

[Event "Titled Tuesday Blitz June 07 Early 2022"]
[White "Maghsoodloo, Parham"]
[Black "Xiong, Jeffery"]
[WhiteFideId "12539929"]
[BlackFideId "2047640"]
[WhiteElo "2607"]
[BlackElo "2714"]
[Result "0-1"]
[Round "09"]
[TimeControl "180+1"]
[Date "2022.06.07"]
[WhiteClock "0:00:54"]
[BlackClock "0:01:31"]

1. d4 {[%clk 0:03:00]}  Nf6 {[%clk 0:03:00]} 2. c4 {[%clk 0:03:01]}  g6 {[%clk 0:03:01]} 3. Nc3 {[%clk 0:03:01]}  d5 {[%clk 0:03:01]} 4. Nf3 {[%clk 0:02:57]}  Bg7 {[%clk 0:03:01]} 5. Qb3 {[%clk 0:02:57]}  dxc4 {[%clk 0:03:02]} 6. Qxc4 {[%clk 0:02:58]}  c6 {[%clk 0:03:02]} 7. e4 {[%clk 0:02:58]}  O-O {[%clk 0:03:02]} 8. Be2 {[%clk 0:02:59]}  b5 {[%clk 0:02:58]} 9. Qb3 {[%clk 0:02:59]}  e5 {[%clk 0:02:47]} 10. dxe5 {[%clk 0:02:56]}  Ng4 {[%clk 0:02:43]} 11. Bf4 {[%clk 0:02:47]}  Be6 {[%clk 0:02:38]} 12. Qc2 {[%clk 0:02:45]}  Nd7 {[%clk 0:02:38]} 13. Ng5 {[%clk 0:02:41]}  Ngxe5 {[%clk 0:02:23]} 14. Nxe6 {[%clk 0:02:38]}  fxe6 {[%clk 0:02:24]} 15. Bg3 {[%clk 0:02:33]}  Qb6 {[%clk 0:02:08]} 16. O-O {[%clk 0:02:32]}  a5 {[%clk 0:02:08]} 17. Rad1 {[%clk 0:02:29]}  a4 {[%clk 0:02:03]} 18. Kh1 {[%clk 0:02:27]}  Qc5 {[%clk 0:01:58]} 19. f4 {[%clk 0:02:17]}  b4 {[%clk 0:01:58]} 20. fxe5 {[%clk 0:02:11]}  Nxe5 {[%clk 0:01:59]} 21. Rxf8+ {[%clk 0:01:54]}  Rxf8 {[%clk 0:02:00]} 22. Qxa4 {[%clk 0:01:52]}  bxc3 {[%clk 0:02:00]} 23. bxc3 {[%clk 0:01:51]}  Qxc3 {[%clk 0:02:01]} 24. Qb3 {[%clk 0:01:33]}  Qxb3 {[%clk 0:01:52]} 25. axb3 {[%clk 0:01:34]}  Ra8 {[%clk 0:01:52]} 26. Rf1 {[%clk 0:01:04]}  Ra2 {[%clk 0:01:39]} 27. Rf2 {[%clk 0:00:54]}  Ra1+ {[%clk 0:01:36]} 28. Rf1 {[%clk 0:00:54]}  Ra2 {[%clk 0:01:37]} 29. Rf2 {[%clk 0:00:54]}  Rb2 {[%clk 0:01:33]} 30. Bc4 {[%clk 0:00:54]}  Nxc4 {[%clk 0:01:31]} 0-1


[Site "https://www.chess.com"]

[Event "Titled Tuesday Blitz June 07 Early 2022"]
[White "Matlakov, Maxim"]
[Black "Matinian, Nikita"]
[WhiteFideId "4168003"]
[BlackFideId "24129100"]
[WhiteElo "2669"]
[BlackElo "2422"]
[Result "1-0"]
[Round "09"]
[TimeControl "180+1"]
[Date "2022.06.07"]
[WhiteClock "0:00:56"]
[BlackClock "0:00:01"]

1. d4 {[%clk 0:03:00]}  Nf6 {[%clk 0:02:59]} 2. Nc3 {[%clk 0:03:01]}  d5 {[%clk 0:02:59]} 3. Bf4 {[%clk 0:03:01]}  g6 {[%clk 0:02:58]} 4. e3 {[%clk 0:03:00]}  Bg7 {[%clk 0:02:58]} 5. Nb5 {[%clk 0:02:55]}  Na6 {[%clk 0:02:58]} 6. h3 {[%clk 0:02:56]}  c6 {[%clk 0:02:58]} 7. Nc3 {[%clk 0:02:55]}  Nc7 {[%clk 0:02:58]} 8. Nf3 {[%clk 0:02:55]}  Bf5 {[%clk 0:02:56]} 9. Be2 {[%clk 0:02:53]}  O-O {[%clk 0:02:56]} 10. O-O {[%clk 0:02:53]}  Ne4 {[%clk 0:02:41]} 11. Nxe4 {[%clk 0:02:42]}  Bxe4 {[%clk 0:02:42]} 12. c4 {[%clk 0:02:38]}  Bxf3 {[%clk 0:02:24]} 13. Bxf3 {[%clk 0:02:37]}  dxc4 {[%clk 0:02:25]} 14. Qc2 {[%clk 0:02:19]}  Nd5 {[%clk 0:02:22]} 15. Bg3 {[%clk 0:02:19]}  Nb6 {[%clk 0:01:40]} 16. a4 {[%clk 0:02:18]}  a5 {[%clk 0:01:40]} 17. b3 {[%clk 0:02:18]}  cxb3 {[%clk 0:01:35]} 18. Qxb3 {[%clk 0:02:19]}  Ra7 {[%clk 0:01:27]} 19. Rab1 {[%clk 0:02:06]}  Nd5 {[%clk 0:01:26]} 20. Bxd5 {[%clk 0:02:03]}  cxd5 {[%clk 0:01:23]} 21. Rfc1 {[%clk 0:02:03]}  Bf6 {[%clk 0:01:14]} 22. Qb5 {[%clk 0:01:59]}  Qe8 {[%clk 0:01:04]} 23. Rc7 {[%clk 0:01:56]}  Qxb5 {[%clk 0:01:01]} 24. Rxb5 {[%clk 0:01:57]}  e6 {[%clk 0:00:58]} 25. Bd6 {[%clk 0:01:53]}  Rb8 {[%clk 0:00:20]} 26. Rxf7 {[%clk 0:01:48]}  Kxf7 {[%clk 0:00:21]} 27. Bxb8 {[%clk 0:01:48]}  Ra6 {[%clk 0:00:21]} 28. Rxb7+ {[%clk 0:01:48]}  Be7 {[%clk 0:00:21]} 29. Ba7 {[%clk 0:01:44]}  Ke8 {[%clk 0:00:19]} 30. Bb6 {[%clk 0:01:43]}  Bb4 {[%clk 0:00:12]} 31. g4 {[%clk 0:01:40]}  h5 {[%clk 0:00:11]} 32. g5 {[%clk 0:01:39]}  h4 {[%clk 0:00:12]} 33. Kg2 {[%clk 0:01:39]}  Be7 {[%clk 0:00:10]} 34. f4 {[%clk 0:01:38]}  Ra8 {[%clk 0:00:10]} 35. Kf3 {[%clk 0:01:33]}  Rc8 {[%clk 0:00:10]} 36. Bxa5 {[%clk 0:01:16]}  Rc4 {[%clk 0:00:10]} 37. Be1 {[%clk 0:01:09]}  Rxa4 {[%clk 0:00:10]} 38. Bxh4 {[%clk 0:01:09]}  Ra3 {[%clk 0:00:09]} 39. Bf2 {[%clk 0:01:08]}  Ra2 {[%clk 0:00:06]} 40. h4 {[%clk 0:01:07]}  Ra1 {[%clk 0:00:06]} 41. h5 {[%clk 0:00:57]}  gxh5 {[%clk 0:00:06]} 42. g6 {[%clk 0:00:58]}  Ra8 {[%clk 0:00:05]} 43. g7 {[%clk 0:00:56]}  Kf7 {[%clk 0:00:01]} 44. Bh4 {[%clk 0:00:56]} 1-0


[Site "https://www.chess.com"]